bitfinex-derivatives/quotes_BTCF0:USTF0_20250222
["timestamp","ask_amount","ask_price","bid_price","bid_amount"]
[1740261399413,0.2169,96692.0,96691.0,0.6993803]
[1740261399611,0.18626624,96698.0,96697.0,0.2068275]
[1740261399913,0.19626624,96698.0,96697.0,0.2068275]
[1740261400113,0.19626624,96698.0,96697.0,0.2704275]
[1740261400511,0.40309154,96698.0,96697.0,0.3024275]
[1740261401316,0.19626624,96698.0,96697.0,0.3024275]
[1740261401511,0.01,96698.0,96697.0,0.3024275]
[1740261403419,0.2168253,96698.0,96697.0,0.3024275]
[1740261404508,0.2168253,96698.0,96697.0,0.2388275]
[1740261405314,0.2168253,96698.0,96697.0,0.3380275]
[1740261405620,0.2168253,96698.0,96697.0,0.2388275]
[1740261405820,0.2168253,96698.0,96697.0,0.3380275]
[1740261407818,0.2168253,96698.0,96697.0,0.6988275]
[1740261417717,0.01,96698.0,96697.0,0.6988275]
[1740261418014,0.1324,96700.0,96699.0,0.2068232]
[1740261418216,0.1424,96700.0,96699.0,0.2068232]
[1740261419219,0.349221,96700.0,96699.0,0.2068232]
[1740261419728,0.349221,96700.0,96699.0,0.21715294]
[1740261420421,0.1424,96700.0,96699.0,0.21715294]
[1740261420823,0.349221,96700.0,96699.0,0.21715294]
[1740261421026,0.11,96700.0,96699.0,0.21715294]
[1740261422330,0.1,96700.0,96699.0,0.21715294]
[1740261423021,0.11,96700.0,96699.0,0.21715294]
[1740261423822,0.1,96700.0,96699.0,0.22715294]
[1740261424415,0.306821,96700.0,96699.0,0.22715294]
[1740261424619,0.1,96700.0,96699.0,0.22715294]
[1740261424915,0.306821,96700.0,96699.0,0.22715294]
[1740261428229,0.1,96700.0,96699.0,0.22715294]
[1740261428534,0.306821,96700.0,96699.0,0.22715294]
[1740261429734,0.1,96700.0,96699.0,0.22715294]
[1740261429936,0.306821,96700.0,96699.0,0.22715294]
[1740261431333,0.15515356,96703.0,96699.0,0.02032974]
[1740261431538,0.0416,96722.0,96721.0,0.2067761]
[1740261431834,0.0416,96722.0,96721.0,1.0275761]
[1740261432031,0.248374,96722.0,96721.0,0.8208]
[1740261432425,0.279974,96722.0,96721.0,0.8208]
[1740261432932,0.279974,96722.0,96721.0,0.7216]
[1740261433330,0.269974,96722.0,96721.0,0.9283761]
[1740261434434,0.279974,96722.0,96721.0,0.9293761]
[1740261436036,0.33024564,96722.0,96721.0,0.9293761]
[1740261436635,0.33024564,96722.0,96721.0,0.5685761]
[1740261439128,0.32024564,96722.0,96721.0,0.5685761]
[1740261439328,0.33024564,96722.0,96721.0,0.5685761]
[1740261439934,0.279974,96722.0,96721.0,0.5685761]
[1740261447540,0.33024498,96722.0,96721.0,0.5685761]
[1740261450439,0.279974,96722.0,96721.0,0.5685761]
[1740261458039,0.33024555,96722.0,96721.0,0.5685761]
[1740261463041,0.33024555,96722.0,96721.0,0.3618]
[1740261463042,0.12347155,96722.0,96721.0,0.3618]
[1740261463450,0.22826522,96722.0,96721.0,0.3618]
[1740261467743,0.12347155,96722.0,96721.0,0.3618]
[1740261472152,0.0732,96722.0,96721.0,0.3618]
[1740261476152,0.0732,96722.0,96721.0,0.46136]
[1740261476457,0.23347093,96722.0,96721.0,0.46136]
[1740261479557,0.20187093,96722.0,96721.0,0.46136]
[1740261485357,0.20187093,96722.0,96721.0,0.3618]
[1740261496659,0.33137652,96722.0,96721.0,0.3618]
[1740261500068,0.20187093,96722.0,96721.0,0.3618]
[1740261503274,0.0416,96722.0,96721.0,0.3618]
[1740261506380,0.20187093,96722.0,96721.0,0.3618]
[1740261516978,0.32980607,96722.0,96721.0,0.3618]
[1740261520391,0.20187093,96722.0,96721.0,0.3618]
[1740261523791,0.0416,96722.0,96721.0,0.3618]
[1740261524788,0.0316,96722.0,96721.0,0.3618]
[1740261525895,0.0416,96722.0,96721.0,0.3618]
[1740261527806,0.01,96722.0,96721.0,0.3618]
[1740261528987,0.24635084,96722.0,96721.0,0.3618]
[1740261532098,0.16885536,96722.0,96721.0,0.3618]
[1740261535591,0.01,96722.0,96721.0,0.001]
[1740261535899,0.01,96722.0,96721.0,0.3618]
[1740261536896,0.01,96722.0,96721.0,0.001]
[1740261537098,0.01,96722.0,96721.0,0.3618]
[1740261539397,0.24627159,96722.0,96721.0,0.3618]
[1740261540104,0.23627159,96722.0,96721.0,0.3618]
[1740261540297,0.24627159,96722.0,96721.0,0.3618]
[1740261547898,0.06027155,96722.0,96721.0,0.3618]
[1740261552517,0.01,96722.0,96721.0,0.3618]
[1740261555905,0.06027155,96722.0,96721.0,0.3618]
[1740261559809,0.16849257,96722.0,96721.0,0.3618]
[1740261574927,0.06027155,96722.0,96721.0,0.3618]
[1740261579029,0.01,96722.0,96721.0,0.3618]
[1740261581529,0.06027155,96722.0,96721.0,0.3618]
[1740261584831,0.17225752,96722.0,96721.0,0.3618]
[1740261595533,0.17225752,96722.0,96721.0,0.001]
[1740261595723,0.17225752,96722.0,96721.0,0.3618]
[1740261596527,0.17225752,96722.0,96721.0,0.001]
[1740261596935,0.17225752,96722.0,96721.0,0.3618]
[1740261602533,0.17225752,96722.0,96721.0,0.001]
[1740261602943,0.17225752,96722.0,96721.0,0.3618]
[1740261603441,0.16225752,96722.0,96721.0,0.3618]
[1740261604435,0.17225752,96722.0,96721.0,0.3618]
[1740261605744,0.17225752,96722.0,96721.0,0.001]
[1740261605933,0.17225752,96722.0,96721.0,0.3618]
[1740261607645,0.17225752,96722.0,96721.0,0.001]
[1740261607849,0.17225752,96722.0,96721.0,0.3618]
[1740261616255,0.06027155,96722.0,96721.0,0.3618]
[1740261619350,0.19610287,96722.0,96721.0,0.3618]
[1740261623457,0.17055798,96722.0,96721.0,0.3618]
[1740261627361,0.01,96722.0,96721.0,0.3618]
[1740261630764,0.06027155,96722.0,96721.0,0.3618]
[1740261635071,0.16879107,96722.0,96721.0,0.3618]
[1740261635872,0.16879107,96722.0,96721.0,0.001]
[1740261636061,0.16879107,96722.0,96721.0,0.3618]
[1740261638063,0.06027155,96722.0,96721.0,0.3618]
[1740261641266,0.06027155,96722.0,96721.0,0.001]
[1740261641563,0.06027155,96722.0,96721.0,0.3618]
[1740261641564,0.01,96722.0,96721.0,0.3618]
[1740261644866,0.24643477,96722.0,96721.0,0.3618]
[1740261652085,0.06027155,96722.0,96721.0,0.3618]
[1740261656079,0.01,96722.0,96721.0,0.3618]
[1740261660388,0.06027155,96722.0,96721.0,0.3618]
[1740261675412,0.05027155,96722.0,96721.0,0.3618]
[1740261675710,0.06027155,96722.0,96721.0,0.3618]
[1740261682217,0.16735952,96722.0,96721.0,0.3618]
[1740261687913,0.16735952,96722.0,96721.0,0.001]
[1740261688116,0.16735952,96722.0,96721.0,0.3618]
[1740261689821,0.16735952,96722.0,96721.0,0.001]
[1740261690022,0.16735952,96722.0,96721.0,0.3618]
[1740261692823,0.15735952,96722.0,96721.0,0.3618]
[1740261693025,0.15735952,96722.0,96721.0,0.46088]
[1740261693328,0.16735952,96722.0,96721.0,0.3618]
[1740261693524,0.16735952,96722.0,96721.0,0.46088]
[1740261693727,0.15735952,96722.0,96721.0,0.46088]
[1740261693925,0.16735952,96722.0,96721.0,0.46088]
[1740261696233,0.16735952,96722.0,96721.0,0.10008]
[1740261696427,0.16735952,96722.0,96721.0,0.82168]
[1740261697025,0.24636431,96722.0,96721.0,0.82168]
[1740261698229,0.24636431,96722.0,96721.0,0.10008]
[1740261698536,0.24636431,96722.0,96721.0,0.82168]
[1740261699236,0.24636431,96722.0,96721.0,0.10008]
[1740261699436,0.24636431,96722.0,96721.0,0.82168]
[1740261700230,0.24636431,96722.0,96721.0,0.10008]
[1740261700539,0.24636431,96722.0,96721.0,0.82168]
[1740261701638,0.01,96722.0,96721.0,0.82168]
[1740261703333,0.01,96722.0,96721.0,0.10008]
[1740261703532,0.01,96722.0,96721.0,0.82168]
[1740261703933,0.031,96724.0,96721.0,0.82168]
[1740261704140,0.01,96722.0,96721.0,0.82168]
[1740261706543,0.01,96722.0,96721.0,0.82068]
[1740261706738,0.014,96722.0,96721.0,0.82168]
[1740261708135,0.06427155,96722.0,96721.0,0.10008]
[1740261708443,0.06427155,96722.0,96721.0,0.82168]
[1740261709434,0.06427155,96722.0,96721.0,0.10008]
[1740261709636,0.06427155,96722.0,96721.0,0.82168]
[1740261715651,0.05427155,96722.0,96721.0,0.82168]
[1740261715850,0.06427155,96722.0,96721.0,0.82168]
[1740261716045,0.05427155,96722.0,96721.0,0.82168]
[1740261716253,0.06427155,96722.0,96721.0,0.82168]
[1740261719251,0.25033141,96722.0,96721.0,0.82168]
[1740261722649,0.06427155,96722.0,96721.0,0.82168]
[1740261726251,0.014,96722.0,96721.0,0.82168]
[1740261730556,0.06427155,96722.0,96721.0,0.7226]
[1740261744773,0.06727155,96722.0,96721.0,0.7226]
[1740261745072,0.18560782,96722.0,96721.0,0.7226]
[1740261755384,0.18560782,96722.0,96696.0,0.3608]
[1740261755385,1.12410782,96722.0,96696.0,0.3608]
[1740261755681,0.01,96697.0,96696.0,0.3938]
[1740261756475,0.01,96697.0,96696.0,0.3958]
[1740261756883,0.01,96697.0,96696.0,0.3938]
[1740261757083,0.01,96697.0,96696.0,0.3978]
[1740261758688,0.01,96697.0,96696.0,0.3968]
[1740261758983,0.01,96697.0,96696.0,0.3948]
[1740261759188,0.01,96697.0,96696.0,0.3958]
[1740261759578,0.01,96697.0,96696.0,0.3948]
[1740261759974,0.02017149,96697.0,96696.0,0.3948]
[1740261760176,0.02017149,96697.0,96696.0,0.3938]
[1740261760387,0.02117149,96697.0,96696.0,0.3938]
[1740261762279,0.02117149,96697.0,96696.0,0.033]
[1740261763180,0.02017149,96697.0,96696.0,0.033]
[1740261763381,0.02117149,96697.0,96696.0,0.033]
[1740261766984,0.02017149,96697.0,96696.0,0.033]
[1740261767190,0.02117149,96697.0,96696.0,0.033]
[1740261768192,0.011,96697.0,96696.0,0.033]
[1740261769491,0.011,96697.0,96696.0,0.035]
[1740261770790,0.01,96697.0,96696.0,0.036]
[1740261772186,0.01,96697.0,96696.0,0.034]
[1740261773293,0.001,96697.0,96696.0,0.033]
[1740261774183,0.011,96697.0,96696.0,0.033]
[1740261780498,0.01,96697.0,96696.0,0.033]
[1740261780702,0.011,96697.0,96696.0,0.033]
[1740261783898,0.01,96697.0,96696.0,0.033]
[1740261784207,0.011,96697.0,96696.0,0.033]
[1740261794908,0.011,96697.0,96694.0,0.14203443]
[1740261795111,0.01,96695.0,96694.0,0.14203443]
[1740261796207,0.01,96695.0,96694.0,0.14303443]
[1740261796809,0.011,96695.0,96694.0,0.14303443]
[1740261798909,0.001,96695.0,96694.0,0.14303443]
[1740261805623,0.001,96695.0,96694.0,0.50383443]
[1740261807127,0.001,96695.0,96694.0,0.40475443]
[1740261807321,0.001,96695.0,96694.0,0.50379443]
[1740261812224,0.001,96695.0,96694.0,0.3618]
[1740261812427,0.001,96695.0,96694.0,0.47133746]
[1740261812930,0.001,96695.0,96694.0,0.46084]
[1740261818534,0.001,96695.0,96694.0,0.3618]
[1740261818833,0.001,96695.0,96694.0,0.46084]
[1740261826537,0.001,96695.0,96694.0,0.10004]
[1740261829939,0.011,96695.0,96694.0,0.10004]
[1740261840246,0.011,96695.0,96694.0,0.09904]
[1740261840454,0.011,96695.0,96694.0,0.10004]
[1740261841842,0.01,96695.0,96694.0,0.10004]
[1740261842044,0.2178317,96695.0,96694.0,0.2078339]
[1740261842551,0.2178317,96695.0,96694.0,0.3068739]
[1740261843052,0.2178317,96695.0,96694.0,0.001]
[1740261843451,0.2178317,96695.0,96694.0,0.10004]
[1740261845047,0.2178317,96695.0,96694.0,0.001]
[1740261845353,0.2178317,96695.0,96694.0,0.10004]
[1740261846844,0.2178317,96695.0,96694.0,0.3068739]
[1740261851552,0.2078317,96695.0,96694.0,0.3068739]
[1740261851757,0.2178317,96695.0,96694.0,0.3068739]
[1740261856958,0.2078317,96695.0,96694.0,0.3068739]
[1740261857461,0.2178317,96695.0,96694.0,0.3068739]
[1740261860563,0.001,96695.0,96694.0,0.3068739]
[1740261861554,0.011,96695.0,96694.0,0.3068739]
[1740261861956,0.2178317,96695.0,96694.0,0.3068739]
[1740261862150,0.2078317,96695.0,96694.0,0.3068739]
[1740261862350,0.2178317,96695.0,96694.0,0.3068739]
[1740261862861,0.2078317,96695.0,96694.0,0.3068739]
[1740261863158,0.2178317,96695.0,96694.0,0.3068739]
[1740261867360,0.0311,96698.0,96694.0,0.11004]
[1740261867560,0.0311,96698.0,96697.0,0.2168275]
[1740261867954,0.0311,96698.0,96697.0,0.2469275]
[1740261868369,0.0321,96698.0,96697.0,0.2469275]
[1740261869258,0.0331,96698.0,96697.0,0.2469275]
[1740261871764,0.002,96698.0,96697.0,0.2469275]
[1740261880561,0.0303,96704.0,96697.0,0.0401]
[1740261880772,0.0303,96704.0,96703.0,0.2168146]
[1740261880963,0.0303,96704.0,96703.0,0.3158146]
[1740261881170,0.0303,96704.0,96703.0,0.3790146]
[1740261883074,0.0323,96704.0,96703.0,0.3790146]
[1740261883476,0.0333,96704.0,96703.0,0.3790146]
[1740261884177,0.0353,96704.0,96703.0,0.3790146]
[1740261886969,0.00015489,96706.0,96703.0,0.1722]
[1740261887170,0.00015489,96706.0,96705.0,0.2168104]
[1740261887372,0.0307,96712.0,96711.0,0.2067975]
[1740261887573,0.0307,96712.0,96711.0,0.3157975]
[1740261887773,0.0307,96712.0,96711.0,0.3480975]
[1740261889069,0.0327,96712.0,96711.0,0.3480975]
[1740261890183,0.0628,96712.0,96711.0,0.3480975]
[1740261890982,0.0658,96712.0,96711.0,0.3480975]
[1740261892392,0.0658,96712.0,96711.0,0.35846285]
[1740261895588,0.0658,96712.0,96711.0,0.32616285]
[1740261905796,0.0658,96712.0,96711.0,0.68696285]
[1740261906000,0.0516927,96724.0,96711.0,0.68696285]
[1740261906001,0.57822001,96734.0,96727.0,0.2584519]
[1740261906196,0.20831035,96729.0,96728.0,0.3057212]
[1740261906987,0.21831035,96729.0,96728.0,0.3057212]
[1740261907299,0.22431035,96729.0,96728.0,0.3057212]
[1740261907602,0.25711035,96729.0,96728.0,0.3057212]
[1740261907902,0.25811035,96729.0,96728.0,0.3067212]
[1740261908403,0.26511035,96729.0,96728.0,0.3067212]
[1740261908904,0.04835135,96729.0,96728.0,0.3067212]
[1740261909198,0.04835135,96729.0,96728.0,0.31689227]
[1740261909401,0.04435135,96729.0,96728.0,0.31589227]
[1740261909703,0.04235135,96729.0,96728.0,0.31589227]
[1740261909904,0.05235135,96729.0,96728.0,0.31589227]
[1740261910401,0.05235135,96729.0,96728.0,0.31789227]
[1740261910402,0.04935135,96729.0,96728.0,0.31789227]
[1740261911295,0.07205135,96729.0,96728.0,0.31789227]
[1740261911601,0.08205135,96729.0,96728.0,0.31789227]
[1740261911994,0.07705135,96729.0,96728.0,0.33404958]
[1740261912293,0.07705135,96729.0,96728.0,0.33504958]
[1740261912701,0.06705135,96729.0,96728.0,0.33504958]
[1740261912888,0.07705135,96729.0,96728.0,0.33504958]
[1740261913094,0.28381035,96729.0,96728.0,0.33504958]
[1740261913296,0.07705135,96729.0,96728.0,0.33504958]
[1740261914092,0.28381035,96729.0,96728.0,0.31889227]
[1740261914999,0.07705135,96729.0,96728.0,0.31889227]
[1740261916704,0.03435135,96729.0,96728.0,0.31889227]
[1740261916903,0.03435135,96729.0,96728.0,0.35039227]
[1740261917102,0.03435135,96729.0,96728.0,0.36654958]
[1740261917804,0.04435135,96729.0,96728.0,0.36654958]
[1740261918609,0.03435135,96729.0,96728.0,0.36654958]
[1740261919115,0.0428,96729.0,96728.0,0.36654958]
[1740261919307,0.0328,96729.0,96728.0,0.36654958]
[1740261919609,0.2067561,96731.0,96730.0,0.2067569]
[1740261919808,0.2067561,96731.0,96730.0,0.22291421]
[1740261920106,0.0639,96733.0,96732.0,0.2067526]
[1740261920301,0.0331,96733.0,96732.0,0.2067526]
[1740261920999,0.2398505,96733.0,96732.0,0.2067526]
[1740261921195,0.2498505,96733.0,96732.0,0.2067526]
[1740261921508,0.2398505,96733.0,96732.0,0.2067526]
[1740261921708,0.0331,96733.0,96732.0,0.2067526]
[1740261922009,0.2398505,96733.0,96732.0,0.2067526]
[1740261922707,0.2498505,96733.0,96732.0,0.2067526]
[1740261922908,0.2398505,96733.0,96732.0,0.2067526]
[1740261923108,0.2498505,96733.0,96732.0,0.2067526]
[1740261923810,0.0431,96733.0,96732.0,0.2067526]
[1740261924011,0.2498505,96733.0,96732.0,0.2067526]
[1740261925207,0.2498505,96733.0,96732.0,0.2229099]
[1740261926304,0.0431,96733.0,96732.0,0.2229099]
[1740261926811,0.0331,96733.0,96732.0,0.2229099]
[1740261927010,0.0431,96733.0,96732.0,0.2229099]
[1740261927207,0.2498505,96733.0,96732.0,0.2229099]
[1740261928602,0.0431,96733.0,96732.0,0.2229099]
[1740261930108,0.2498505,96733.0,96732.0,0.2229099]
[1740261930607,0.2398505,96733.0,96732.0,0.2229099]
[1740261930808,0.2498505,96733.0,96732.0,0.2229099]
[1740261933013,0.2398505,96733.0,96732.0,0.2229099]
[1740261933213,0.2498505,96733.0,96732.0,0.2229099]
[1740261933609,0.2398505,96733.0,96732.0,0.2229099]
[1740261934413,0.0331,96733.0,96732.0,0.2229099]
[1740261934602,0.2498505,96733.0,96732.0,0.2229099]
[1740261937420,0.0431,96733.0,96732.0,0.2229099]
[1740261937922,0.2498505,96733.0,96732.0,0.2229099]
[1740261939121,0.0431,96733.0,96732.0,0.2229099]
[1740261940820,0.0431,96733.0,96732.0,0.47027091]
[1740261941817,0.36140001,96734.0,96733.0,0.2067505]
[1740261942017,0.3608,96734.0,96733.0,0.2229078]
[1740261942226,0.3608,96734.0,96733.0,0.2329078]
[1740261943021,0.3708,96734.0,96733.0,0.2329078]
[1740261943523,0.3608,96734.0,96733.0,0.2329078]
[1740261943819,0.3708,96734.0,96733.0,0.2329078]
[1740261944014,0.3718,96734.0,96733.0,0.2329078]
[1740261946727,0.3718,96734.0,96733.0,0.23290768]
[1740261947218,0.3618,96734.0,96733.0,0.23290768]
[1740261947419,0.3718,96734.0,96733.0,0.23290768]
[1740261949217,0.3618,96734.0,96733.0,0.23290768]
[1740261949614,0.001,96734.0,96733.0,0.23290768]
[1740261951124,0.001,96734.0,96733.0,0.23290659]
[1740261958036,0.001,96734.0,96733.0,0.23290629]
[1740261959634,0.001,96734.0,96733.0,0.23290628]
[1740261962331,0.001,96734.0,96733.0,0.2167505]
[1740261962540,0.001,96734.0,96733.0,0.3156705]
[1740261963839,0.001,96734.0,96733.0,0.56295961]
[1740261967139,0.001,96734.0,96733.0,0.3156705]
[1740261969639,0.3608,96751.0,96733.0,0.10892]
[1740261969829,0.3608,96751.0,96750.0,0.2167142]
[1740261970035,0.3608,96751.0,96750.0,0.3156742]
[1740261970926,0.568512,96751.0,96750.0,0.3156742]
[1740261971131,0.3618,96751.0,96750.0,0.3186742]
[1740261971528,0.567512,96751.0,96750.0,0.3216742]
[1740261973444,0.567512,96751.0,96750.0,0.33782792]
[1740261974244,0.567512,96751.0,96750.0,0.34823456]
[1740261975443,0.567512,96751.0,96750.0,0.33208084]
[1740261975947,0.567512,96751.0,96750.0,0.3216742]
[1740261976451,0.567512,96751.0,96750.0,0.332172]
[1740261977241,0.567512,96751.0,96750.0,0.2227142]
[1740261977441,0.567512,96751.0,96750.0,0.006]
[1740261977650,0.567512,96751.0,96750.0,0.1054]
[1740261977851,0.567512,96751.0,96750.0,0.006]
[1740261978069,0.567512,96751.0,96750.0,0.1054]
[1740261978947,0.567512,96751.0,96750.0,0.10536]
[1740261979543,0.567512,96751.0,96750.0,0.10236]
[1740261979851,0.567512,96751.0,96748.0,0.02584]
[1740261979852,0.2067163,96749.0,96748.0,0.02584]
[1740261980057,0.2067248,96745.0,96744.0,0.14813554]
[1740261980348,0.2067291,96743.0,96742.0,0.09952]
[1740261981049,0.2067291,96743.0,96741.0,0.14829061]
[1740261981050,0.2067313,96742.0,96741.0,0.14829061]
[1740261981349,0.5675313,96742.0,96741.0,0.14829061]
[1740261983254,0.5733313,96742.0,96741.0,0.14829061]
[1740261983748,0.9341313,96742.0,96741.0,0.14829061]
[1740261984252,1.09009682,96742.0,96741.0,0.00015507]
[1740261987455,0.9351313,96742.0,96741.0,0.00015507]
[1740261993852,0.9451313,96742.0,96741.0,0.00015507]
[1740261994255,0.9393313,96742.0,96741.0,0.00015507]
[1740261994455,0.9393313,96742.0,96741.0,0.03205507]
[1740261995362,0.9393313,96742.0,96741.0,0.06465507]
[1740261998856,1.09429682,96742.0,96741.0,0.06465507]
[1740262007865,1.08429682,96742.0,96741.0,0.06465507]
[1740262008759,1.09429682,96742.0,96741.0,0.06465507]
[1740262009959,0.98959581,96742.0,96741.0,0.06465507]
[1740262011968,0.97959581,96742.0,96741.0,0.06465507]
[1740262012265,0.97959581,96742.0,96741.0,0.27138847]
[1740262013168,0.98959581,96742.0,96741.0,0.27138847]
[1740262013370,0.97959581,96742.0,96741.0,0.27138847]
[1740262014370,0.98959581,96742.0,96741.0,0.06465507]
[1740262016568,0.97959581,96742.0,96741.0,0.27138847]
[1740262018360,0.9293313,96742.0,96741.0,0.27138847]
[1740262018561,0.9293313,96742.0,96741.0,0.37094847]
[1740262021074,0.9293313,96742.0,96741.0,0.16421507]
[1740262022064,0.9293313,96742.0,96741.0,0.37094847]
[1740262031272,0.92937258,96742.0,96741.0,0.37094847]
[1740262040769,0.92937258,96742.0,96741.0,0.16421507]
[1740262040966,0.92937258,96742.0,96741.0,0.37094847]
[1740262041374,0.92937258,96742.0,96741.0,0.16421507]
[1740262041779,0.92937258,96742.0,96724.0,0.81976]
[1740262041780,0.2067633,96727.0,96724.0,0.81976]
[1740262041974,0.5675633,96727.0,96726.0,0.49120829]
[1740262042285,0.5675633,96727.0,96724.0,0.81976]
[1740262042286,0.2067676,96725.0,96724.0,0.81976]
[1740262042469,0.2067676,96725.0,96724.0,0.92910534]
[1740262042670,0.2067676,96725.0,96724.0,1.13587504]
[1740262042866,0.2067676,96725.0,96724.0,1.1252897]
[1740262043080,0.2067676,96725.0,96724.0,0.95088]
[1740262043567,0.2067676,96725.0,96724.0,0.85664]
[1740262043771,0.2067676,96725.0,96724.0,0.95592]
[1740262044170,0.2067676,96725.0,96724.0,0.3434497]
[1740262044971,0.2067676,96725.0,96724.0,0.3736497]
[1740262045282,0.2067676,96725.0,96724.0,0.3786497]
[1740262045673,0.2067676,96725.0,96724.0,0.3776497]
[1740262046073,0.2067676,96725.0,96724.0,0.3766497]
[1740262046275,0.2067676,96725.0,96724.0,0.3756497]
[1740262046980,0.2067676,96725.0,96724.0,0.16888]
[1740262047180,0.2067676,96725.0,96724.0,0.3756497]
[1740262047479,0.2067676,96725.0,96724.0,0.3755697]
[1740262049772,0.2167676,96725.0,96724.0,0.3755697]
[1740262049978,0.2167676,96725.0,96724.0,0.1688]
[1740262050185,0.2167676,96725.0,96724.0,0.3755697]
[1740262050882,0.2167676,96725.0,96724.0,0.1688]
[1740262051178,0.2167676,96725.0,96724.0,0.3755697]
[1740262052685,0.2167676,96725.0,96724.0,0.0696]
[1740262053278,0.2167676,96725.0,96724.0,0.2763697]
[1740262053679,0.2167676,96725.0,96724.0,0.0696]
[1740262053882,0.2167676,96725.0,96724.0,0.2763697]
[1740262054080,0.2167676,96725.0,96724.0,0.0696]
[1740262054482,0.2167676,96725.0,96724.0,0.2763697]
[1740262054688,0.2167676,96725.0,96724.0,0.0696]
[1740262054886,0.2167676,96725.0,96724.0,0.2763697]
[1740262055483,0.2167676,96725.0,96724.0,0.0696]
[1740262066401,0.2167676,96725.0,96724.0,0.2763697]
[1740262066597,0.2167676,96725.0,96724.0,0.0696]
[1740262074309,0.5775676,96725.0,96724.0,0.0696]
[1740262077011,0.37171366,96725.0,96724.0,0.0696]
[1740262077400,0.73251366,96725.0,96724.0,0.0696]
[1740262078905,0.37171366,96725.0,96724.0,0.0696]
[1740262079209,0.73251366,96725.0,96724.0,0.0696]
[1740262080310,0.5775676,96725.0,96724.0,0.0696]
[1740262088403,0.2167676,96725.0,96724.0,0.0696]
[1740262088709,0.62783688,96725.0,96724.0,0.0696]
[1740262089612,0.26703688,96725.0,96724.0,0.0696]
[1740262090013,0.62783688,96725.0,96724.0,0.0696]
[1740262091710,0.26703688,96725.0,96724.0,0.0696]
[1740262092005,0.62783688,96725.0,96724.0,0.0696]
[1740262096918,0.5775676,96725.0,96724.0,0.0696]
[1740262103409,0.5775676,96725.0,96724.0,0.0666]
[1740262103605,0.5775676,96725.0,96724.0,0.0696]
[1740262104219,0.62783724,96725.0,96724.0,0.0696]
[1740262104618,0.62783724,96725.0,96724.0,0.0656]
[1740262104918,0.62783724,96725.0,96724.0,0.0696]
[1740262107913,0.61783724,96725.0,96724.0,0.2763697]
[1740262108122,0.62783724,96725.0,96724.0,0.2763697]
[1740262110623,0.62783724,96725.0,96724.0,0.3713297]
[1740262110917,0.62783724,96725.0,96724.0,0.3753297]
[1740262111923,0.73267217,96725.0,96724.0,0.3753297]
[1740262115220,0.73267217,96725.0,96724.0,0.3683297]
[1740262115525,0.73267217,96725.0,96724.0,0.3753297]
[1740262119721,0.73267217,96725.0,96724.0,0.3713297]
[1740262119923,0.73267217,96725.0,96724.0,0.3723297]
[1740262120118,0.73267217,96725.0,96724.0,0.3753297]
[1740262120321,0.5775676,96725.0,96724.0,0.3753297]
[1740262121027,0.5675676,96725.0,96724.0,0.3753297]
[1740262121223,0.5775676,96725.0,96724.0,0.3753297]
[1740262124116,0.5775676,96725.0,96724.0,0.56077188]
[1740262128323,0.5775676,96725.0,96724.0,0.3753297]
[1740262149642,0.5775676,96725.0,96724.0,0.2763697]
[1740262149842,0.5775676,96725.0,96724.0,0.3753297]
[1740262154550,0.5775676,96725.0,96724.0,0.16856]
[1740262155052,0.5775676,96725.0,96724.0,0.0696]
[1740262155245,0.5775676,96725.0,96724.0,0.10596]
[1740262156040,0.5775676,96725.0,96724.0,0.10296]
[1740262156253,0.5775676,96725.0,96724.0,0.10596]
[1740262156756,0.5775676,96725.0,96724.0,0.10196]
[1740262156952,0.5775676,96725.0,96724.0,0.10596]
[1740262158044,0.62783745,96725.0,96724.0,0.10596]
[1740262159548,0.98863745,96725.0,96724.0,0.10596]
[1740262161547,0.98863745,96725.0,96724.0,0.10296]
[1740262161749,0.98863745,96725.0,96724.0,0.10596]
[1740262161750,0.9383676,96725.0,96724.0,0.10596]
[1740262172267,0.5775676,96725.0,96724.0,0.10596]
[1740262176961,0.2167676,96725.0,96724.0,0.10596]
[1740262177161,0.5775676,96725.0,96724.0,0.10596]
[1740262178763,0.62783659,96725.0,96724.0,0.10596]
[1740262185669,0.62783659,96725.0,96724.0,0.10296]
[1740262185875,0.62783659,96725.0,96724.0,0.10596]
[1740262186075,0.5775676,96725.0,96724.0,0.10596]
[1740262186271,0.732651,96725.0,96724.0,0.10596]
[1740262187378,0.74290324,96725.0,96724.0,0.10896]
[1740262187971,0.732651,96725.0,96724.0,0.10896]
[1740262188968,0.732651,96725.0,96724.0,0.10296]
[1740262189175,0.732651,96725.0,96724.0,0.10596]
[1740262189475,0.74286179,96725.0,96724.0,0.10596]
[1740262189881,0.5775676,96725.0,96724.0,0.10596]
[1740262193173,0.58798979,96725.0,96724.0,0.10596]
[1740262193378,0.63825905,96725.0,96724.0,0.10596]
[1740262199479,0.26703686,96725.0,96724.0,0.10596]
[1740262199982,0.26703686,96725.0,96724.0,0.007]
[1740262208278,0.2167676,96725.0,96724.0,0.007]
[1740262215382,0.45299554,96725.0,96724.0,0.007]
[1740262215589,0.24622794,96725.0,96719.0,0.0622]
[1740262215889,0.3708,96720.0,96714.0,0.09896]
[1740262216083,0.2067932,96713.0,96712.0,0.18544218]
[1740262216284,0.2167932,96713.0,96712.0,0.18544218]
[1740262218388,0.2167932,96713.0,96712.0,0.19644218]
[1740262218389,0.2177932,96713.0,96712.0,0.19644218]
[1740262219588,0.26806252,96713.0,96712.0,0.011]
[1740262220393,0.27864327,96713.0,96712.0,0.011]
[1740262222897,1.00024327,96713.0,96712.0,0.011]
[1740262224696,0.94997395,96713.0,96712.0,0.011]
[1740262226899,0.22837395,96713.0,96712.0,0.011]
[1740262227201,0.94997395,96713.0,96712.0,0.011]
[1740262232697,0.22837395,96713.0,96712.0,0.011]
[1740262232897,0.94997395,96713.0,96712.0,0.011]
[1740262236603,0.9293932,96713.0,96712.0,0.2177954]
[1740262236903,0.9393932,96713.0,96712.0,0.011]
[1740262237099,0.9393932,96713.0,96712.0,0.0422]
[1740262239201,0.9393932,96713.0,96712.0,0.2489954]
[1740262239402,0.9393932,96713.0,96712.0,0.0422]
[1740262245199,0.2177932,96713.0,96712.0,0.0422]
[1740262245406,0.9393932,96713.0,96712.0,0.0422]